[Event "20. Dolomitenbank Open-A 2019"]
[Site "Lienz"]
[Date "2019.02.11"]
[Round "4.6"]
[White "Thipsay, Bagyashree Sathe"]
[Black "Gschnitzer, Adrian"]
[Result "1-0"]
[ECO "B32"]
[WhiteElo "2062"]
[BlackElo "2382"]
[Annotator "NA RC"]
[PlyCount "97"]
[EventDate "2019.02.09"]
[EventType "swiss"]
[EventCountry "AUT"]
[SourceTitle "playchess.com"]
[Source "ChessBase"]
[SourceQuality "1"]
[TimeControl "40/5400+30:1800+30"]

1. e4 {[%emt 0:00:00]} c5 {[%emt 0:00:00]} 2. Nf3 {[%emt 0:00:00]} Nc6 {[%emt 0:00:00]} 3. d4 {[%emt 0:00:00]} cxd4 {[%emt 0:00:00]} 4. Nxd4 {[%emt 0:00:00]} e5 {[%emt 0:00:42]} 5. Nb5 {[%emt 0:00:34]} d6 {[%emt 0:00:21]} 6. c4 {[%emt 0:00:16]} Be7 {[%emt 0:00:10]} 7. N1c3 {[%emt 0:01:41]} a6 {[%emt 0:00:09]} 8. Na3 {[%emt 0:00:07]} f5 {[%emt 0:00:15]} 9. exf5 {[%emt 0:02:36] LiveBook: 305 Games} Bxf5 {[%emt 0:00:10]} 10. Bd3 {[%emt 0:00:46]} Be6 {[%emt 0:00:10]} 11. O-O {[%emt 0:02:44]} Nf6 {[%emt 0:00:06]} 12. Nc2 {[%emt 0:03:04] B32: Sicilian: Löwenthal and Kalashnikov Variations} O-O {[%emt 0:00:24]} 13. Bg5 {[%emt 0:06:40]} (13. b3 Qd7 14. Bb2 Bd8 15. Ne4 Bb6 16. Qe2 Rad8 17. Kh1 Nxe4 18. Bxe4 {½-½ (50) Yu,Y (2764)-Potapov,P (2516) St Petersburg 2018}) 13... Qe8 {[%emt 0:09:02]} 14. Qe2 {[%emt 0:09:04]} Bd8 $146 {[%emt 0:13:53]} ({Predecessor:} 14... Kh8 15. Rad1 Rc8 16. Ne4 Nxe4 17. Qxe4 Bf5 18. Qe3 e4 19. Be2 Ne5 20. Bxe7 Qxe7 {0-1 (68) Sztokbant,B (2280)-Cubas,J (2455) Sao Paulo 2015}) 15. Rad1 {[%emt 0:06:52]} Nh5 {[%emt 0:10:38]} 16. Be3 {[%emt 0:18:29]} Nf4 {[%emt 0:02:05]} 17. Bxf4 $1 {[%emt 0:01:27]} Rxf4 {[%emt 0:01:18]} 18. Ne4 {[%emt 0:01:20]} Be7 $14 {[%emt 0:12:39]} 19. g3 {[%emt 0:05:39]} Rf8 {[%emt 0:00:22]} 20. Qe3 {[%emt 0:09:37]} Qf7 {[%emt 0:08:48]} 21. b3 {[%emt 0:07:59]} Bh3 {[%emt 0:04:27]} 22. Rfe1 {[%emt 0:00:48]} Rad8 {[%emt 0:06:03]} 23. Bf1 {[%emt 0:01:25]} Bf5 {[%emt 0:00:37]} 24. Bg2 {[%emt 0:00:36]} Kh8 {[%emt 0:00:51]} 25. Rd2 {[%emt 0:04:23]} Qg6 {[%emt 0:01:29]} 26. Red1 {[%emt 0:03:18]} h6 {[%emt 0:05:24]} 27. Rf1 {[%emt 0:03:51]} Bg5 {[%emt 0:05:34]} 28. Nxg5 {[%emt 0:01:49]} hxg5 {[%emt 0:00:09]} 29. Ne1 {[%emt 0:02:16]} Nd4 {[%emt 0:07:49]} 30. Nf3 {[%emt 0:03:07]} Nxf3+ {[%emt 0:01:41]} 31. Bxf3 {[%emt 0:00:02]} Bh3 {[%emt 0:01:17]} 32. Rfd1 {[%emt 0:00:43]} Rd7 {[%emt 0:00:32]} 33. c5 {[%emt 0:00:44]} Rxf3 {[%emt 0:07:21]} 34. Qxf3 {[%emt 0:00:10]} e4 {[%emt 0:00:57]} 35. Qe3 {[%emt 0:00:34]} Qh5 {[%emt 0:00:59]} 36. cxd6 {[%emt 0:01:03]} Bg4 {[%emt 0:00:14]} 37. f3 {[%emt 0:02:11]} Bxf3 {[%emt 0:00:01]} 38. Rc1 {[%emt 0:00:14]} Qh3 {[%emt 0:00:57]} 39. Rcc2 {[%emt 0:01:30]} Qe6 {[%emt 0:01:13]} 40. Qxg5 {[%emt 0:01:16]} e3 {[%emt 0:00:30]} 41. Rc8+ {[%emt 0:30:01]} Kh7 {[%emt 0:30:28]} 42. Rd4 {[%emt 0:00:14]} g6 {[%emt 0:00:00]} 43. Rh4+ {[%emt 0:00:00]} Bh5 {[%emt 0:00:00]} 44. Rxh5+ {[%emt 0:00:00]} gxh5 {[%emt 0:00:00]} 45. Qxh5+ {[%emt 0:00:00]} Kg7 {[%emt 0:00:00]} 46. Qh8+ {[%emt 0:00:00]} Kg6 {[%emt 0:00:00]} 47. Rg8+ {[%emt 0:00:00]} Kf5 {[%emt 0:00:00]} 48. Qh5+ {[%emt 0:00:00]} Ke4 {[%emt 0:00:00]} 49. Re8 {[%emt 0:00:00] Kd5} 1-0